bitfinex-derivatives/quotes_BTCF0:USTF0_20241217
["timestamp","ask_amount","ask_price","bid_price","bid_amount"]
[1734466532384,0.444997,106180.0,106170.0,0.0571]
[1734466533081,0.084197,106180.0,106170.0,0.0571]
[1734466533385,0.51311613,106180.0,106170.0,0.057096]
[1734466533777,0.444997,106180.0,106170.0,0.057096]
[1734466535081,0.084197,106180.0,106170.0,0.057096]
[1734466535674,0.444997,106180.0,106170.0,0.057096]
[1734466535874,0.084197,106180.0,106170.0,0.057096]
[1734466536572,0.444997,106180.0,106170.0,0.057096]
[1734466538984,0.0371,106180.0,106170.0,0.48601513]
[1734466539376,0.084192,106180.0,106170.0,0.417896]
[1734466542773,0.15231113,106180.0,106170.0,0.44999943]
[1734466542973,0.18851113,106180.0,106170.0,0.44999943]
[1734466543175,0.120392,106180.0,106170.0,0.44999943]
[1734466547983,0.54931113,106180.0,106170.0,0.03327621]
[1734466548184,0.54931113,106180.0,106170.0,0.01]
[1734466548393,0.54931113,106180.0,106160.0,0.02327621]
[1734466548586,0.47601513,106170.0,106160.0,0.02327621]
[1734466548901,0.47601513,106170.0,106160.0,0.01]
[1734466549586,0.47601513,106170.0,106160.0,0.03327621]
[1734466550682,0.47601513,106170.0,106160.0,0.01]
[1734466551780,0.51361513,106170.0,106160.0,0.01]
[1734466553881,0.52843175,106170.0,106160.0,0.01]
[1734466554596,0.047101,106160.0,106120.0,0.443005]
[1734466554894,0.480605,106150.0,106140.0,0.01]
[1734466555189,0.841405,106150.0,106140.0,0.01]
[1734466555390,0.888512,106150.0,106140.0,0.01]
[1734466556290,0.95663113,106150.0,106140.0,0.01]
[1734466556887,0.95663113,106150.0,106120.0,0.443006]
[1734466556888,0.95663113,106150.0,106130.0,0.01]
[1734466557086,0.47602813,106140.0,106130.0,0.01]
[1734466557691,0.51082813,106140.0,106130.0,0.01]
[1734466558990,0.51094764,106140.0,106130.0,0.01]
[1734466566203,0.57906677,106140.0,106130.0,0.01]
[1734466567393,0.51094764,106140.0,106130.0,0.01]
[1734466567598,0.57906677,106140.0,106130.0,0.01]
[1734466567799,0.51094764,106140.0,106130.0,0.01]
[1734466568695,0.57906677,106140.0,106130.0,0.01]
[1734466569397,0.51094764,106140.0,106130.0,0.01]
[1734466569695,0.57906677,106140.0,106130.0,0.01]
[1734466571501,0.51094764,106140.0,106130.0,0.01]
[1734466573596,0.40802851,106140.0,106130.0,0.01]
[1734466573896,0.47614764,106140.0,106130.0,0.01]
[1734466576707,0.04722851,106140.0,106130.0,0.057114]
[1734466577096,0.04722851,106140.0,106130.0,0.452214]
[1734466578192,0.04722851,106140.0,106130.0,0.091414]
[1734466578193,0.11534764,106140.0,106130.0,0.091414]
[1734466578397,0.47614764,106140.0,106130.0,0.01]
[1734466581007,0.11534764,106140.0,106130.0,0.057114]
[1734466581503,0.11534764,106140.0,106130.0,0.01]
[1734466582298,0.11534764,106140.0,106130.0,0.03327621]
[1734466582299,0.54426677,106140.0,106130.0,0.03327621]
[1734466582502,0.47614764,106140.0,106130.0,0.03327621]
[1734466582808,0.47614764,106140.0,106130.0,0.01]
[1734466583608,0.47614764,106140.0,106130.0,0.03327621]
[1734466584299,0.47614764,106140.0,106130.0,0.04210343]
[1734466584506,0.47614764,106140.0,106130.0,0.01]
[1734466585101,0.11534764,106140.0,106130.0,0.01]
[1734466586095,0.47614764,106140.0,106130.0,0.01]
[1734466586812,0.54426677,106140.0,106130.0,0.01]
[1734466591820,0.47614764,106140.0,106130.0,0.01]
[1734466595606,0.47614764,106140.0,106130.0,0.03327621]
[1734466595809,0.54426677,106140.0,106130.0,0.03327621]
[1734466596011,0.49752377,106140.0,106130.0,0.03327621]
[1734466596613,0.49752377,106140.0,106130.0,0.01]
[1734466600408,0.40802851,106140.0,106130.0,0.01]
[1734466600609,0.45277614,106140.0,106130.0,0.01]
[1734466600811,0.49752377,106140.0,106130.0,0.01]
[1734466612318,0.00011951,106140.0,106130.0,0.10186163]
[1734466612524,0.3758478,106150.0,106140.0,0.047109]
[1734466612525,0.047106,106150.0,106140.0,0.047109]
[1734466612717,0.047106,106150.0,106140.0,0.12595663]
[1734466612926,0.09185363,106150.0,106140.0,0.081209]
[1734466613126,0.09185363,106150.0,106140.0,0.0341]
[1734466613324,0.09185363,106150.0,106140.0,0.06626318]
[1734466613628,0.45275043,106150.0,106140.0,0.06634776]
[1734466614030,0.47616407,106150.0,106140.0,0.05751766]
[1734466614727,0.47616407,106150.0,106140.0,0.03418458]
[1734466617142,0.47616407,106150.0,106140.0,8.458e-05]
[1734466619636,0.11536407,106150.0,106140.0,8.458e-05]
[1734466620349,0.47616407,106150.0,106140.0,8.458e-05]
[1734466620544,0.47616407,106150.0,106140.0,0.02341766]
[1734466620751,0.47616407,106150.0,106140.0,8.458e-05]
[1734466622341,0.47616407,106150.0,106140.0,0.02341766]
[1734466622552,0.47616407,106150.0,106140.0,8.458e-05]
[1734466623348,0.11536407,106150.0,106140.0,8.458e-05]
[1734466623848,0.47616407,106150.0,106140.0,8.458e-05]
[1734466624547,0.49506985,106150.0,106140.0,8.458e-05]
[1734466633056,0.047109,106140.0,106130.0,0.42828358]
[1734466633355,0.65033154,106140.0,106130.0,0.01]
[1734466634150,0.58217027,106140.0,106130.0,0.01]
[1734466638457,0.60016707,106140.0,106130.0,0.01]
[1734466639753,0.60016707,106140.0,106110.0,0.28567558]
[1734466639953,0.047114,106130.0,106110.0,0.3608]
[1734466640148,0.04712,106120.0,106110.0,0.047121]
[1734466640360,0.04712,106120.0,106110.0,0.057121]
[1734466641458,0.04712,106120.0,106110.0,0.48608227]
[1734466641952,0.04712,106120.0,106110.0,0.93785584]
[1734466642349,0.5791168,106140.0,106130.0,0.047109]
[1734466642350,0.047111,106140.0,106130.0,0.047109]
[1734466642551,0.4080028,106150.0,106140.0,0.047109]
[1734466642552,0.0472038,106150.0,106140.0,0.047109]
[1734466642853,0.0472038,106150.0,106140.0,0.17164208]
[1734466643854,0.0472038,106150.0,106140.0,0.148309]
[1734466644453,0.54140855,106150.0,106130.0,0.01]
[1734466644663,0.50917027,106140.0,106130.0,0.03333308]
[1734466646955,0.407909,106140.0,106130.0,0.03333308]
[1734466647266,0.407909,106140.0,106130.0,0.01]
[1734466647655,0.47607027,106140.0,106130.0,0.01]
[1734466654768,0.54423154,106140.0,106130.0,0.01]
[1734466654960,0.57863154,106140.0,106130.0,0.01]
[1734466655268,0.61153154,106140.0,106130.0,0.01]
[1734466655968,0.54337027,106140.0,106130.0,0.01]
[1734466658171,0.56206771,106140.0,106130.0,0.01]
[1734466658369,0.46100644,106140.0,106130.0,0.01]
[1734466658562,0.42660644,106140.0,106130.0,0.03333308]
[1734466658970,0.42660644,106140.0,106130.0,0.08044708]
[1734466659860,0.49476771,106140.0,106130.0,0.057114]
[1734466660055,0.56292898,106140.0,106130.0,0.01]
[1734466660470,0.63302898,106140.0,106130.0,0.01]
[1734466660862,0.56486771,106140.0,106130.0,0.01]
[1734466662068,0.047118,106120.0,106100.0,0.65281103]
[1734466662272,0.407918,106120.0,106110.0,0.45149396]
[1734466662468,0.54367927,106120.0,106110.0,0.03333676]
[1734466662663,0.54367927,106120.0,106110.0,0.01]
[1734466665167,0.56174766,106120.0,106110.0,0.01]
[1734466665375,0.59484766,106120.0,106110.0,0.01]
[1734466666071,0.407918,106130.0,106110.0,0.43896127]
[1734466666274,0.407918,106130.0,106120.0,0.11527927]
[1734466666275,0.047118,106130.0,106120.0,0.11527927]
[1734466666478,0.047118,106130.0,106120.0,0.14744613]
[1734466666670,0.047118,106130.0,106120.0,0.65790999]
[1734466666865,0.0472038,106150.0,106120.0,1.01870999]
[1734466667178,0.0472038,106150.0,106130.0,0.48607027]
[1734466667179,0.047111,106140.0,106130.0,0.48607027]
[1734466667380,0.047111,106140.0,106130.0,0.417909]
[1734466671174,0.39718597,106150.0,106130.0,0.417909]
[1734466671381,0.42591615,106150.0,106140.0,0.047109]
[1734466671768,0.06511615,106150.0,106140.0,0.047109]
[1734466672375,0.06511615,106150.0,106140.0,0.07044576]
[1734466672583,0.06511615,106150.0,106140.0,0.43124576]
[1734466672768,9.68e-05,106150.0,106140.0,0.47607027]
[1734466672969,0.00141385,106170.0,106160.0,0.047101]
[1734466673172,0.149694,106180.0,106170.0,0.047096]
[1734466673881,0.14980621,106180.0,106170.0,0.047096]
[1734466674095,0.14980621,106180.0,106170.0,0.04717845]
[1734466674987,0.21796748,106180.0,106170.0,0.04717845]
[1734466676380,0.13349451,106180.0,106170.0,0.04717845]
[1734466676587,0.09989451,106180.0,106170.0,0.04717845]
[1734466677482,0.08140621,106180.0,106170.0,0.04717845]
[1734466677792,0.08140621,106180.0,106170.0,0.40797845]
[1734466678086,0.00011221,106180.0,106170.0,0.47613972]
[1734466678884,0.00011221,106180.0,106170.0,0.40797845]
[1734466680173,0.00011221,106180.0,106170.0,0.47613972]
[1734466680377,0.00011221,106180.0,106170.0,0.77613972]
[1734466680981,0.00011221,106180.0,106170.0,0.86242245]
[1734466681177,0.047084,106200.0,106190.0,0.11524827]
[1734466681375,0.10243609,106210.0,106200.0,0.047083]
[1734466681679,0.10243609,106210.0,106180.0,0.441588]
[1734466681680,0.047087,106190.0,106180.0,0.441588]
[1734466682376,0.047087,106190.0,106180.0,0.50974927]
[1734466682577,0.0471866,106200.0,106190.0,0.047087]
[1734466682777,0.0471866,106200.0,106190.0,0.407887]
[1734466683591,0.0471866,106200.0,106190.0,0.047087]
[1734466683775,0.11534787,106200.0,106190.0,0.047087]
[1734466684487,0.0471866,106200.0,106190.0,0.047087]
[1734466684691,0.4079866,106200.0,106190.0,0.047087]
[1734466685586,0.0471866,106200.0,106190.0,0.047087]
[1734466686083,0.4079866,106200.0,106190.0,0.047087]
[1734466686483,0.0471866,106200.0,106190.0,0.047087]
[1734466687391,0.0001026,106200.0,106190.0,0.47604827]
[1734466687598,0.057076,106220.0,106190.0,0.84420954]
[1734466687796,0.057076,106220.0,106210.0,0.47603927]
[1734466688489,0.01,106220.0,106210.0,0.47603927]
[1734466690287,0.01,106220.0,106210.0,0.77603927]
[1734466690493,0.01,106220.0,106210.0,0.47603927]
[1734466690678,0.01,106220.0,106210.0,0.51073927]
[1734466692889,0.01,106220.0,106210.0,0.442578]
[1734466692890,0.057074,106220.0,106210.0,0.442578]
[1734466693898,0.01,106220.0,106210.0,0.51073927]
[1734466695298,0.01,106220.0,106210.0,0.52673796]
[1734466695993,0.01,106220.0,106210.0,0.88753796]
[1734466697390,0.00010276,106230.0,106220.0,0.047074]
[1734466697598,0.00010276,106230.0,106220.0,0.47603527]
[1734466697899,0.04717276,106230.0,106220.0,0.11523527]
[1734466698093,0.04717276,106230.0,106220.0,0.047074]
[1734466698503,0.40797276,106230.0,106220.0,0.047074]
[1734466698896,0.44357276,106230.0,106220.0,0.047074]
[1734466700307,0.08277276,106230.0,106220.0,0.047074]
[1734466700904,0.44357276,106230.0,106220.0,0.047074]
[1734466701107,0.08277276,106230.0,106220.0,0.47603527]
[1734466702009,0.08277276,106230.0,106220.0,0.11523527]
[1734466703122,0.44357276,106230.0,106220.0,0.11523527]
[1734466704021,0.08277276,106230.0,106220.0,0.11523527]
[1734466705320,0.44357276,106230.0,106220.0,0.11523527]
[1734466705717,0.00010276,106230.0,106220.0,0.47603527]
[1734466706017,0.00010276,106230.0,106220.0,0.47610369]
[1734466707724,0.00010276,106230.0,106220.0,0.79944045]
[1734466708022,0.00010276,106230.0,106220.0,0.86584045]
[1734466708218,0.00010276,106230.0,106220.0,0.93400172]
[1734466708419,0.08358768,106250.0,106220.0,0.95773896]
[1734466708624,0.08358768,106260.0,106240.0,0.83682627]
[1734466708821,0.08358768,106260.0,106250.0,0.47602227]
[1734466709623,0.13076143,106270.0,106260.0,0.047056]
[1734466709923,0.13076143,106270.0,106260.0,0.47601727]
[1734466710117,0.13076143,106270.0,106260.0,0.047056]
[1734466710724,0.08370743,106270.0,106260.0,0.11521727]
[1734466711024,0.08370743,106270.0,106260.0,0.47601727]
[1734466711520,0.00011975,106270.0,106260.0,0.47601727]
[1734466712226,0.08370743,106270.0,106260.0,0.47601727]
[1734466713023,0.00011975,106270.0,106260.0,0.47601727]
[1734466716526,0.04717175,106270.0,106260.0,0.407856]
[1734466716931,0.04717175,106270.0,106260.0,0.047056]
[1734466719535,0.047056,106260.0,106250.0,0.06239785]
[1734466719724,0.080556,106260.0,106250.0,0.06239785]
[1734466721227,0.441356,106260.0,106250.0,0.06239785]
[1734466722134,0.50951727,106260.0,106250.0,0.047059]
[1734466722326,0.047064,106250.0,106240.0,0.047064]
[1734466722527,0.472864,106250.0,106240.0,0.047064]
[1734466723139,0.55645168,106250.0,106240.0,0.047064]
[1734466724133,0.472864,106250.0,106240.0,0.047064]
[1734466724831,0.11568768,106250.0,106240.0,0.47602527]
[1734466725038,0.079161,106250.0,106240.0,0.11522527]
[1734466725334,0.079161,106250.0,106240.0,0.047064]
[1734466726332,0.50812227,106250.0,106230.0,0.01492936]
[1734466726534,0.439965,106240.0,106230.0,0.047067]
[1734466727031,0.079165,106240.0,106230.0,0.047067]
[1734466727233,0.439965,106240.0,106230.0,0.047067]
[1734466727933,0.047061,106250.0,106240.0,0.047065]
[1734466728124,0.0335,106250.0,106240.0,0.47602627]
[1734466728737,0.0335,106250.0,106240.0,0.407865]
[1734466729033,0.080561,106250.0,106240.0,0.407865]
[1734466729238,0.0335,106250.0,106240.0,0.047065]
[1734466729827,0.080561,106250.0,106240.0,0.047065]
[1734466730032,0.080561,106250.0,106240.0,0.407865]
[1734466730434,0.080561,106250.0,106240.0,0.047065]
[1734466731437,0.080561,106250.0,106240.0,0.407865]
[1734466732238,0.0335,106250.0,106240.0,0.407865]
[1734466733037,0.110757,106260.0,106250.0,0.047061]
[1734466733540,0.110757,106260.0,106250.0,0.407861]
[1734466734127,0.04717375,106270.0,106260.0,0.047056]
[1734466736346,0.40797375,106270.0,106260.0,0.047056]
[1734466737639,0.047059,106260.0,106250.0,0.047058]
[1734466737846,0.047061,106250.0,106240.0,0.4229599]
[1734466738145,0.147061,106250.0,106240.0,0.44622706]
[1734466738532,0.507861,106250.0,106240.0,0.08542706]
[1734466739047,0.507861,106250.0,106240.0,0.0621599]
[1734466739237,0.147061,106250.0,106240.0,0.13032117]
[1734466739841,0.147061,106250.0,106240.0,0.0621599]
[1734466740746,0.507861,106250.0,106240.0,0.0621599]
[1734466740950,0.147061,106250.0,106240.0,0.0621599]
[1734466741454,0.147061,106250.0,106240.0,0.13032117]
[1734466741951,0.147061,106250.0,106240.0,0.49112117]
[1734466742447,0.047057,106260.0,106250.0,0.047056]
[1734466742651,0.08947275,106270.0,106260.0,0.047056]
[1734466742953,0.04241975,106270.0,106260.0,0.11521727]
[1734466743142,0.04241975,106270.0,106260.0,0.47601727]
[1734466743344,0.04241975,106270.0,106260.0,0.11521727]
[1734466743538,0.04241975,106270.0,106260.0,0.47601727]
[1734466744551,0.08947175,106270.0,106260.0,0.47601727]
[1734466744752,0.08947175,106270.0,106260.0,0.407856]
[1734466745345,0.08947175,106270.0,106260.0,0.047056]
[1734466745743,0.04706,106260.0,106250.0,0.047059]
[1734466745944,0.40786,106260.0,106250.0,0.047059]
[1734466746265,0.04706,106260.0,106250.0,0.11522027]
[1734466747053,0.04706,106260.0,106250.0,0.047059]
[1734466749959,0.04706,106260.0,106250.0,0.11522027]
[1734466750747,0.40786,106260.0,106250.0,0.047059]
[1734466752857,0.47602127,106260.0,106250.0,0.047059]
[1734466753167,0.43926,106260.0,106250.0,0.047059]
[1734466753461,0.43926,106260.0,106240.0,0.33511188]
[1734466753462,0.047061,106250.0,106240.0,0.40550189]
[1734466753662,0.07403145,106250.0,106240.0,0.41550189]
[1734466754052,0.43483145,106250.0,106240.0,0.07123242]
[1734466754850,0.50299272,106250.0,106240.0,0.01]
[1734466755054,0.53759272,106250.0,106240.0,0.01]
[1734466756559,0.53759272,106250.0,106240.0,0.12522627]
[1734466756560,0.0666,106250.0,106240.0,0.12522627]
[1734466756764,0.032,106250.0,106240.0,0.50935428]
[1734466757664,0.10520734,106270.0,106260.0,0.047056]
[1734466757857,0.49860734,106270.0,106260.0,0.057056]
[1734466758361,0.48457275,106270.0,106260.0,0.12521727]
[1734466758556,0.12377275,106270.0,106260.0,0.12521727]
[1734466758974,0.04271975,106270.0,106260.0,0.12521727]
[1734466759675,0.03271975,106270.0,106260.0,0.13854528]
[1734466760170,0.03271975,106270.0,106260.0,0.11521727]
[1734466762376,0.07977175,106270.0,106260.0,0.11521727]
[1734466762674,0.07977175,106270.0,106260.0,0.13253491]
[1734466762874,0.07977175,106270.0,106260.0,0.06437364]
[1734466771072,0.07977175,106270.0,106260.0,0.13253491]
[1734466772574,0.03271975,106270.0,106260.0,0.49333491]
[1734466772968,0.03271975,106270.0,106260.0,0.13253491]
[1734466773167,0.03271975,106270.0,106260.0,0.15586292]
[1734466773988,0.03271975,106270.0,106260.0,0.51666292]
[1734466775374,0.00011975,106270.0,106260.0,0.52549302]
[1734466775578,0.00011975,106270.0,106260.0,0.58166292]
[1734466775771,0.00011975,106270.0,106260.0,0.55833491]
[1734466776168,0.00011975,106270.0,106260.0,0.58166292]
[1734466776376,0.00011975,106270.0,106260.0,0.56716501]
[1734466776571,0.00011975,106270.0,106260.0,0.58166292]
[1734466776777,0.00011975,106270.0,106260.0,1.16499543]
[1734466776969,0.48976691,106290.0,106280.0,0.047047]
[1734466777165,0.12896691,106290.0,106280.0,0.07037501]
[1734466777872,0.12896691,106290.0,106280.0,0.047047]
[1734466778071,0.12906115,106290.0,106280.0,0.047047]
[1734466781778,0.06426115,106290.0,106280.0,0.047047]
[1734466781977,0.06426115,106290.0,106280.0,0.11520827]
[1734466782181,0.06426115,106290.0,106280.0,0.13853628]
[1734466782478,0.06426115,106290.0,106280.0,0.11520827]
[1734466782678,0.06426115,106290.0,106280.0,0.047047]
[1734466782880,0.09796115,106290.0,106280.0,0.047047]
[1734466783587,0.45876115,106290.0,106280.0,0.047047]
[1734466783781,0.57396642,106290.0,106270.0,0.047051]
[1734466784085,0.4267,106280.0,106270.0,0.047051]
[1734466784281,0.09796015,106290.0,106280.0,0.047047]
[1734466784487,0.09796015,106290.0,106280.0,0.11520827]
[1734466784779,0.08083824,106290.0,106280.0,0.047047]
[1734466784984,0.50979951,106290.0,106270.0,0.02332801]
[1734466785280,0.407847,106280.0,106270.0,0.07037801]
[1734466785487,0.473747,106280.0,106270.0,0.07037801]
[1734466786079,0.473747,106280.0,106270.0,0.13853928]
[1734466786778,0.473747,106280.0,106270.0,0.11521127]
[1734466786983,0.473747,106280.0,106270.0,0.04705]
[1734466787485,0.112947,106280.0,106270.0,0.04705]
[1734466787983,0.473747,106280.0,106270.0,0.04705]
[1734466788186,0.112947,106280.0,106270.0,0.04705]
[1734466788575,0.473747,106280.0,106270.0,0.04705]
[1734466789581,0.112947,106280.0,106270.0,0.04705]
[1734466789782,0.473747,106280.0,106270.0,0.04705]
[1734466790181,0.112947,106280.0,106270.0,0.04705]
[1734466791880,0.473747,106280.0,106270.0,0.04705]
[1734466793178,0.047052,106270.0,106260.0,0.07437264]
[1734466793386,0.078652,106270.0,106260.0,0.07437264]
[1734466794283,0.439452,106270.0,106260.0,0.07437264]
[1734466794487,0.078652,106270.0,106260.0,0.07437264]
[1734466795184,0.078652,106270.0,106260.0,0.14253391]
[1734466796582,0.0316,106270.0,106260.0,0.14253391]
[1734466797294,0.047051,106280.0,106270.0,0.047052]
[1734466797486,0.047051,106280.0,106270.0,0.47601327]
[1734466798995,0.047051,106280.0,106270.0,0.047052]
[1734466799581,0.407851,106280.0,106270.0,0.047052]
[1734466800079,0.047051,106280.0,106270.0,0.047052]
[1734466800287,0.43933924,106290.0,106280.0,0.047047]
[1734466800487,0.43933924,106290.0,106280.0,0.11520827]
[1734466801303,0.07853924,106290.0,106280.0,0.11520827]
[1734466802292,0.07853924,106290.0,106280.0,0.13853628]
[1734466803300,0.07853924,106290.0,106280.0,0.11520827]
[1734466804199,0.03149424,106290.0,106280.0,0.47610606]
[1734466804397,0.07853724,106290.0,106280.0,0.47610606]
[1734466804604,0.07853724,106290.0,106280.0,0.49943407]
[1734466806194,0.07853724,106290.0,106280.0,0.47610606]
[1734466806590,0.03149424,106290.0,106280.0,0.47610606]
[1734466808097,0.03149424,106290.0,106280.0,0.49381268]
[1734466808998,0.07853724,106290.0,106280.0,0.49381268]
[1734466810292,0.50749851,106290.0,106280.0,9.779e-05]
[1734466810601,0.43933724,106290.0,106280.0,0.0234258]
[1734466810791,0.43933724,106290.0,106280.0,9.779e-05]
[1734466810995,0.43933724,106290.0,106280.0,0.06825906]
[1734466811189,0.43933724,106290.0,106280.0,0.11530606]
[1734466811591,0.07853724,106290.0,106280.0,0.11530606]
[1734466814399,0.43933724,106290.0,106280.0,0.11530606]
[1734466815205,0.07853724,106290.0,106280.0,0.11530606]
[1734466815508,0.43933724,106290.0,106280.0,0.11530606]
[1734466816400,0.07853724,106290.0,106280.0,0.11530606]
[1734466819406,0.04713724,106290.0,106280.0,0.11530606]
[1734466820099,0.07993724,106290.0,106280.0,0.04714479]
[1734466820300,0.50889851,106290.0,106280.0,0.0234258]
[1734466820602,0.57219851,106290.0,106280.0,0.0234258]
[1734466820807,0.50403724,106290.0,106280.0,0.0234258]
[1734466821211,0.50403724,106290.0,106280.0,9.779e-05]
[1734466823999,0.50403724,106290.0,106280.0,0.04714479]
[1734466824308,0.50403724,106290.0,106280.0,0.11530606]
[1734466825703,0.14323724,106290.0,106280.0,0.11530606]
[1734466826306,0.14323724,106290.0,106280.0,0.11520827]
[1734466827111,0.14323724,106290.0,106280.0,0.11529219]
[1734466827409,0.14323724,106290.0,106280.0,0.14743822]
[1734466827611,0.07993724,106290.0,106280.0,0.14743822]
[1734466828005,0.07993724,106290.0,106280.0,0.1386202]
[1734466828696,0.07993724,106290.0,106280.0,0.11529219]
[1734466829903,0.44073724,106290.0,106280.0,0.11529219]
[1734466830104,0.07993724,106290.0,106280.0,0.11529219]
[1734466832308,0.44073724,106290.0,106280.0,0.11529219]
[1734466832508,0.07993724,106290.0,106280.0,0.11529219]
[1734466833010,9.424e-05,106290.0,106280.0,0.50823822]
[1734466833207,9.424e-05,106290.0,106280.0,0.60563822]
[1734466835214,9.424e-05,106290.0,106280.0,0.5968202]
[1734466835404,9.424e-05,106290.0,106280.0,0.60563822]
[1734466835606,9.424e-05,106290.0,106280.0,0.5968202]
[1734466835808,0.04713724,106290.0,106280.0,0.60563822]
[1734466836010,0.04713724,106290.0,106280.0,0.2360202]
[1734466836213,9.424e-05,106290.0,106280.0,0.5968202]
[1734466836418,9.424e-05,106290.0,106280.0,0.57349219]
[1734466837813,0.04713724,106290.0,106280.0,0.57349219]
[1734466840720,0.04713724,106290.0,106280.0,0.04713092]
[1734466841021,0.07833724,106290.0,106280.0,0.04713092]
[1734466841221,0.11043724,106290.0,106280.0,0.04713092]
[1734466842116,0.47123724,106290.0,106280.0,0.04713092]
[1734466842316,0.53939851,106290.0,106280.0,8.392e-05]
[1734466842518,0.57029851,106290.0,106280.0,8.392e-05]
[1734466843815,0.50213724,106290.0,106280.0,8.392e-05]
[1734466844016,0.57029851,106290.0,106280.0,8.392e-05]
[1734466845023,0.50213724,106290.0,106280.0,8.392e-05]
[1734466846234,0.57029851,106290.0,106280.0,8.392e-05]
[1734466846524,0.047052,106270.0,106260.0,0.01]
[1734466846823,0.768652,106270.0,106260.0,0.01]
[1734466847022,0.047065,106240.0,106230.0,0.88919176]
[1734466847221,0.407865,106240.0,106230.0,0.45142248]
[1734466847420,0.047065,106240.0,106230.0,0.45149568]
[1734466848117,0.047065,106240.0,106230.0,0.0100732]
[1734466848118,0.407865,106240.0,106230.0,0.0100732]
[1734466850329,0.440165,106240.0,106230.0,0.0100732]
[1734466852019,0.50832627,106240.0,106230.0,0.0100732]
[1734466853830,0.440165,106240.0,106230.0,0.0100732]
[1734466854127,0.5906229,106240.0,106230.0,0.0100732]
[1734466854316,0.52246163,106240.0,106230.0,0.0100732]
[1734466857127,0.52246163,106240.0,106230.0,0.00958807]
[1734466857928,0.45430036,106240.0,106230.0,0.00958807]
[1734466858734,0.45430036,106240.0,106230.0,0.05665807]
[1734466859634,0.3608,106240.0,106230.0,0.12481934]
[1734466859831,0.047063,106250.0,106240.0,0.047065]
[1734466860031,0.047063,106250.0,106240.0,0.11522627]
[1734466860425,0.3935,106260.0,106240.0,0.06816127]
[1734466860736,0.440558,106260.0,106250.0,0.05657587]
[1734466861421,0.079758,106260.0,106250.0,0.48553714]
[1734466861620,0.40926605,106270.0,106250.0,0.48553714]
[1734466861821,0.04846605,106270.0,106260.0,0.11521727]
[1734466862026,0.04846605,106270.0,106260.0,0.047056]
[1734466862223,0.40926605,106270.0,106260.0,0.047056]
[1734466862831,0.047056,106260.0,106250.0,0.05657487]
[1734466863831,0.11521727,106260.0,106250.0,0.00951487]
[1734466864136,0.047056,106260.0,106250.0,0.00951487]
[1734466864336,0.047056,106260.0,106250.0,0.05657587]
[1734466864638,0.407856,106260.0,106250.0,0.05657587]
[1734466865037,0.407856,106260.0,106250.0,0.00951487]
[1734466865433,0.407856,106260.0,106250.0,0.05657587]
[1734466865740,0.047056,106260.0,106250.0,0.05657587]
[1734466867139,0.407856,106260.0,106250.0,0.05657587]
[1734466867339,0.047056,106260.0,106250.0,0.05657587]
[1734466867930,0.407856,106260.0,106250.0,0.05657587]
[1734466868226,0.047056,106260.0,106250.0,0.05657587]
[1734466868841,0.407856,106260.0,106250.0,0.05657587]
[1734466869141,0.047056,106260.0,106250.0,0.12473714]
[1734466869340,0.047056,106260.0,106250.0,0.48553714]
[1734466870540,0.04846605,106270.0,106260.0,0.047056]
[1734466871739,0.00141205,106270.0,106260.0,0.47601727]
[1734466871940,0.440549,106280.0,106260.0,0.53931727]
[1734466872134,0.42459424,106290.0,106280.0,0.047047]
[1734466872135,9.424e-05,106290.0,106280.0,0.047047]
[1734466872438,9.424e-05,106290.0,106280.0,0.47600827]
[1734466873050,9.424e-05,106290.0,106280.0,0.47608046]
[1734466873538,0.1,106300.0,106280.0,0.86756974]
[1734466873732,0.1,106300.0,106290.0,0.54416554]
[1734466873938,0.1,106300.0,106290.0,0.57666554]
[1734466874132,0.1,106300.0,106290.0,0.53930427]
[1734466874335,0.1,106300.0,106290.0,0.60746554]
[1734466874729,0.1,106300.0,106290.0,0.53930427]
[1734466876139,0.1,106300.0,106290.0,0.60746554]
[1734466876943,0.1,106300.0,106290.0,0.53930427]
[1734466879333,0.1,106300.0,106290.0,0.50680427]
[1734466879552,0.147039,106300.0,106290.0,0.407843]
[1734466879845,0.147039,106300.0,106290.0,0.47600427]
[1734466880149,0.1,106300.0,106290.0,0.47600427]
[1734466880844,0.1,106300.0,106290.0,0.54416554]
[1734466881042,0.1,106300.0,106290.0,0.47600427]
[1734466881445,0.1,106300.0,106290.0,0.49365224]
[1734466883242,0.1,106300.0,106290.0,0.56181351]
[1734466884647,0.1,106300.0,106290.0,0.86181351]
[1734466884847,8.589e-05,106320.0,106310.0,0.047034]
[1734466885042,8.589e-05,106320.0,106310.0,0.47599527]
[1734466888150,8.589e-05,106320.0,106310.0,0.90495654]
[1734466888349,0.0421,106330.0,106320.0,0.04703]
[1734466888649,0.01,106330.0,106320.0,0.54415254]
[1734466889350,0.01,106330.0,106320.0,0.47599127]
[1734466890346,0.01157938,106330.0,106320.0,0.47599127]
[1734466891752,0.01251454,106330.0,106320.0,0.47599127]
[1734466892847,0.0134497,106330.0,106320.0,0.47599127]
[1734466894141,0.01438936,106330.0,106320.0,0.47599127]
[1734466894548,0.01532902,106330.0,106320.0,0.47599127]
[1734466895254,0.01600857,106330.0,106320.0,0.47599127]
[1734466897358,0.01600857,106330.0,106320.0,0.40783]
[1734466897359,0.06303357,106330.0,106320.0,0.40783]
[1734466897556,0.09383357,106330.0,106320.0,0.40783]
[1734466899356,0.09383357,106330.0,106320.0,0.47599127]
[1734466900252,0.04680857,106330.0,106320.0,0.47599127]
[1734466901148,0.09383357,106330.0,106320.0,0.47599127]
[1734466901460,0.09383357,106330.0,106320.0,0.04703]
[1734466901657,0.09383357,106330.0,106320.0,0.47599127]
[1734466903154,0.17742125,106330.0,106320.0,0.47599127]
[1734466903355,0.09383357,106330.0,106320.0,0.47599127]
[1734466903557,0.17742125,106330.0,106320.0,0.47599127]
[1734466904061,0.17742125,106330.0,106320.0,0.11519127]
[1734466907357,0.17742125,106330.0,106320.0,0.04703]
[1734466908758,0.09383357,106330.0,106320.0,0.04703]
[1734466908962,0.09383357,106330.0,106320.0,0.40783]
[1734466909165,0.09383357,106330.0,106320.0,0.04703]
[1734466910266,0.17742125,106330.0,106320.0,0.04703]
[1734466910459,0.09383357,106330.0,106320.0,0.04703]
[1734466910860,0.17742125,106330.0,106320.0,0.04703]
[1734466911663,0.53822125,106330.0,106320.0,0.04703]
[1734466911871,0.53822125,106330.0,106310.0,0.06976175]
[1734466911872,0.60638252,106330.0,106310.0,0.06976175]